Cogmind - Beta 13 @@@ ROGUE MODE // 2024.03.31 @ 20:09:05 Player: emory Result: Destroyed by G-47 Trooper with Particle Gun Performance ------------- Evolutions (2) 1000 Regions Visited (4) 800 Robots Destroyed (24) 120 Value Destroyed (685) 685 Prototype IDs (2) 40 Alien Tech Used (0) 0 Bonus (0) 0 TOTAL SCORE: 2645 Bonus ------- None Cogmind --------- Core Integrity 0/550 Matter 260/300 Energy 59/150 System Corruption 0% Temperature Warm (195) Movement Core (550) Ox10 Location -8/Materials Parts ------- > --- POWER (2) -------- Light Ion Engine Light Ion Engine > --- PROPULSION (4) --- (None) > --- UTILITY (3) ------ Large Storage Unit > --- WEAPON (2) ------- Beam Rifle Light EM Pulse Cannon > --- INVENTORY (15) --- Ion Engine Improved Treads Medium Matter Pod (100) Medium Matter Pod (100) Medium Matter Pod (19) Medium Matter Pod (0) High-powered Tractor Beam Trap Extractor (0/4) Beam Cannon Heavy Assault Rifle Peak State ------------ > --- POWER ------------ Improved Ion Engine > --- PROPULSION ------- Light Treads Light Treads Improved Treads Improved Treads > --- UTILITY ---------- Large Storage Unit Medium Battery > --- WEAPON ----------- Small Laser Autogun > --- INVENTORY -------- Ion Engine Light Ion Engine Light Ion Engine Hover Unit Heat Sink Medium Matter Pod High-powered Tractor Beam Beam Rifle [Rating: 14] Favorites ----------- Power Improved Ion Engine Engine Improved Ion Engine Propulsion Light Treads Treads Light Treads Leg Aluminum Leg Hover Unit Hover Unit Utility Medium Battery Device Heat Sink Storage Medium Battery Weapon Small Laser Energy Gun Small Laser Energy Cannon Light EM Pulse Cannon Ballistic Gun Autogun Launcher Grenade Launcher Build | -11 -10 -9 -9 -8 ------- Run | Yrd Mat Mat Min Mat Slots Evolved 4 | . . 2 . 2 Power 1 | . . . . 1 Propulsion 2 | . . 2 . . Utility 1 | . . . . 1 Weapon . | . . . . . Parts Attached 31 | 5 4 16 . 6 Power 6 | 1 . 2 . 3 Engine 6 | 1 . 2 . 3 Core . | . . . . . Reactor . | . . . . . Propulsion 10 | 2 . 8 . . Treads 7 | . . 7 . . Leg 2 | 2 . . . . Wheel . | . . . . . Hover 1 | . . 1 . . Flight . | . . . . . Utility 6 | . 3 2 . 1 Device 1 | . . . . 1 Storage 5 | . 3 2 . . Processor . | . . . . . Hackware . | . . . . . Protection . | . . . . . Artifact . | . . . . . Weapon 9 | 2 1 4 . 2 Energy Gun 6 | 2 . 3 . 1 Energy Cannon 1 | . . . . 1 Ballistic Gun 1 | . . 1 . . Ballistic Cannon . | . . . . . Launcher 1 | . 1 . . . Special Weapon . | . . . . . Impact Weapon . | . . . . . Slashing Weapon . | . . . . . Piercing Weapon . | . . . . . Special Melee Weapon . | . . . . . Unidentified Prototypes . | . . . . . Parts Lost 15 | . 1 6 . 8 Power 3 | . . 1 . 2 Propulsion 5 | . . 3 . 2 Utility 3 | . 1 . . 2 Weapon 4 | . . 2 . 2 Highest Loss Streak 7 | . 1 2 . 7 To Critical Strikes . | . . . . . Average Slot Usage (%) 72 | . 87 70 77 63 Engine 11 | . 14 10 11 13 Treads 14 | . . 17 22 14 Leg 6 | . 28 2 . . Storage 20 | . 15 22 22 17 Energy Gun 14 | . 15 14 22 13 Ballistic Gun 1 | . . 2 . . Launcher 2 | . 12 . . . Naked Turns . | . . . . . Heaviest Build 41 | 6 18 33 33 41 Greatest Support 86 | 20 20 86 40 40 Greatest Overweight (x) 10 | . . 9 . 10 Average Overweight (x) . | . . . . 1 Largest Inventory Capacity 15 | 5 8 15 15 15 Average Capacity 11 | 5 6 12 15 15 Most Carried 15 | 2 7 15 15 15 Average Carried 8 | . 4 8 15 14 Final Capacity 15 | 5 8 15 15 15 Final Carried 15 | 1 6 15 15 10 Class Distribution -------------------- 72% | Mutant 27% | Scavenger-Mutant Dominant Class ---------------- Mutant | -10/Materials Mutant | -9/Materials Scavenger-Mutant | -9/Mines Scavenger-Mutant | -8/Materials Resources | -11 -10 -9 -9 -8 ----------- Run | Yrd Mat Mat Min Mat Matter Collected 732 | 250 17 278 . 187 Remotely . | . . . . . Salvage Created 766 | 43 17 598 . 108 Parts 61 | 1 2 52 . 6 Haulers Intercepted . | . . . . . Recyclers Shooed . | . . . . . Parts Field Recycled . | . . . . . Retrieved Matter . | . . . . . Parts Self-Destructed . | . . . . . Prevented . | . . . . . Kills | -11 -10 -9 -9 -8 ------- Run | Yrd Mat Mat Min Mat Combat Hostiles Destroyed 15 | 1 . 12 . 2 Guns 15 | 1 . 12 . 2 Classes Destroyed 7 | 1 1 4 . 1 Builder 2 | . . 2 . . Mechanic 1 | . . 1 . . Operator 1 | . . . . 1 Watcher 5 | . 2 3 . . Swarmer 4 | . . 4 . . Grunt 5 | 1 . 2 . 2 Sentry 6 | . . 6 . . Best Kill Streak 5 | 1 1 5 . 2 Combat Bots Only 4 | 1 . 4 . 2 Max Kills in Single Turn 2 | 1 1 2 . 1 Gunslinging . | . . . . . Exploded . | . . . . . Melee . | . . . . . Uniques/NPCs Destroyed . | . . . . . Combat | -11 -10 -9 -9 -8 -------- Run | Yrd Mat Mat Min Mat Hostile Shots Fired 238 | 6 . 83 . 149 Missed 64 | 1 . 25 . 38 Damage Taken 2442 | 54 74 1027 . 1287 Core 827 | 11 9 248 . 559 Absorbed by Shields . | . . . . . Core Remaining (%) 75 | 95 92 . 38 . Volleys Fired 99 | 3 7 61 . 28 Largest 2 | 2 2 2 . 2 Hottest 112 | 80 70 96 . 112 Shots Fired 141 | 6 11 89 . 35 Gun 133 | 6 7 87 . 33 Cannon 2 | . . . . 2 Launcher 6 | . 4 2 . . Special . | . . . . . Kinetic 12 | . . 12 . . Thermal 93 | 3 . 57 . 33 Explosive 6 | . 4 2 . . Electromagnetic 30 | 3 7 18 . 2 Robot Hit Streak 11 | 2 1 11 . 10 Robot Miss Streak 8 | 1 7 8 . 6 Penetration Max . | . . . . . Secondary Targets . | . . . . . Shots Hit Robots 89 | 4 2 60 . 23 Core Hits 38 | 2 3 25 . 8 Critical Kills . | . . . . . Critical Parts Destroyed . | . . . . . Critical Strikes 4 | . . 1 . 3 Burn 4 | . . 1 . 3 Melee Attacks . | . . . . . Impact . | . . . . . Slashing . | . . . . . Piercing . | . . . . . Sneak Attacks . | . . . . . Combat Hostiles . | . . . . . Follow-up Attacks . | . . . . . Damage Inflicted 1215 | 49 98 693 . 375 Guns 1026 | 49 22 627 . 328 Cannons 47 | . . . . 47 Explosions 142 | . 76 66 . . Melee . | . . . . . Ramming . | . . . . . Kinetic 90 | . . 90 . . Thermal 834 | 21 . 485 . 328 Explosive 95 | . 76 19 . . Electromagnetic 196 | 28 22 99 . 47 Impact . | . . . . . Slashing . | . . . . . Piercing . | . . . . . Highest Corruption . | . . . . . Average Corruption . | . . . . . Corruption Purged . | . . . . . Corruption Blocked . | . . . . . Overload Shots . | . . . . . Overflow Damage 77 | . 22 55 . . Projectiles . | . . . . . Explosions 77 | . 22 55 . . Melee . | . . . . . Knockbacks . | . . . . . Impact . | . . . . . Kinetic . | . . . . . Secondary . | . . . . . Self-Inflicted Damage 271 | . 76 195 . . Shots 5 | . 2 3 . . Rammed . | . . . . . Targets Rammed . | . . . . . Kicked . | . . . . . Crushed . | . . . . . Highest Temperature 163 | 54 18 56 . 163 Average Temperature 31 | 30 8 16 . 52 Received Heat Transfer 723 | 30 . 198 . 495 Siege Activations . | . . . . . Robots Corrupted . | . . . . . Combat Hostiles . | . . . . . Parts Fried . | . . . . . Impact Corruptions . | . . . . . Robots Melted . | . . . . . Combat Hostiles . | . . . . . Parts Melted 2 | . . 1 . 1 Heat Transferred 2197 | 50 . 1110 . 1037 Parts Sabotaged . | . . . . . Parts Stolen . | . . . . . Parts Stripped . | . . . . . Power Chain Reactions 1 | . . 1 . . Alert | -11 -10 -9 -9 -8 ------- Run | Yrd Mat Mat Min Mat Peak Influence 396 | 20 90 396 110 105 Initial 110 | . 13 37 110 42 Average 179 | 3 33 264 110 64 Maximum Alert Level 1 | . . 1 . . Low Security (%) 48 | 100 100 15 100 100 Level 1 51 | . . 84 . . Level 2 . | . . . . . Level 3 . | . . . . . Level 4 . | . . . . . Level 5 . | . . . . . High Security . | . . . . . Max Security . | . . . . . Squads Dispatched 5 | . . 3 . 2 Investigation 4 | . . 2 . 2 Extermination . | . . . . . Reinforcement 1 | . . 1 . . Assault . | . . . . . Garrison . | . . . . . Intercept . | . . . . . Searches Triggered . | . . . . . Construction Impeded . | . . . . . Haulers Reinforced . | . . . . . Active Scanning Responses . | . . . . . Cargo Convoy Interrupts . | . . . . . Stealth | -11 -10 -9 -9 -8 --------- Run | Yrd Mat Mat Min Mat Distress Signals 2 | . . . . 2 Communications Jammed . | . . . . . Distress Signals . | . . . . . Times Spotted 35 | 1 4 19 . 11 Peak Tracking Total 5 | 1 3 4 . 5 Tactical Retreats 3 | . . 3 . . Traps | -11 -10 -9 -9 -8 ------- Run | Yrd Mat Mat Min Mat Traps Triggered 2 | . . 2 . . Indirectly . | . . . . . Trap Hack Attempts . | . . . . . Triggered . | . . . . . Disarmed . | . . . . . Reprogrammed . | . . . . . Reused . | . . . . . Traps Extracted . | . . . . . Installed . | . . . . . Triggered . | . . . . . Machines | -11 -10 -9 -9 -8 ---------- Run | Yrd Mat Mat Min Mat Machines Disabled 6 | . 2 4 . . Max in Single Turn 2 | . 1 2 . . Machines Repaired . | . . . . . Machines Dismantled . | . . . . . Machines Sabotaged . | . . . . . Overloaded Fab Kills . | . . . . . Hacking | -11 -10 -9 -9 -8 --------- Run | Yrd Mat Mat Min Mat Machines Accessed 9 | . 1 7 . 1 Terminals 8 | . 1 6 . 1 Fabricators . | . . . . . Repair Stations . | . . . . . Recycling Units . | . . . . . Scanalyzers 1 | . . 1 . . Garrison Access . | . . . . . Total Hacks 20 | . 2 14 . 4 Successful 11 | . 2 8 . 1 Failed 9 | . . 6 . 3 Catastrophic . | . . . . . Database Lockouts . | . . . . . Manual . | . . . . . Terminals 18 | . 2 12 . 4 Fabricators . | . . . . . Repair Stations . | . . . . . Recycling Units . | . . . . . Scanalyzers 2 | . . 2 . . Garrison Access . | . . . . . Terminal Hacks 9 | . 2 6 . 1 Record 6 | . . 5 . 1 Robot Analysis 1 | . . 1 . . Prototype ID Bank 1 | . 1 . . . Zone Layout 1 | . 1 . . . Fabricator Hacks . | . . . . . Repair Station Hacks . | . . . . . Recycling Unit Hacks . | . . . . . Scanalyzer 2 | . . 2 . . Insert Component 1 | . . 1 . . Analyze 1 | . . 1 . . Garrison Access Hacks . | . . . . . Unauthorized Hacks . | . . . . . Terminals . | . . . . . Fabricators . | . . . . . Repair Stations . | . . . . . Recycling Units . | . . . . . Scanalyzers . | . . . . . Garrison Access . | . . . . . Data Cores Recovered . | . . . . . Used . | . . . . . Hacking Detections 6 | . . 5 . 1 Full Trace Events 3 | . . 2 . 1 Feedback Events . | . . . . . Feedback Blocked . | . . . . . Robot Schematics Acquired . | . . . . . Robots Built . | . . . . . Authchips . | . . . . . Time . | . . . . . Total Robot Build Rating . | . . . . . Part Schematics Acquired 1 | . . 1 . . Parts Built . | . . . . . Authchips . | . . . . . Time . | . . . . . Total Part Build Rating . | . . . . . Parts Repaired . | . . . . . Time . | . . . . . Parts Recycled . | . . . . . Recycled Matter . | . . . . . Retrieved Matter . | . . . . . Retrieved Components . | . . . . . Parts Scanalyzed 1 | . . 1 . . Part Schematics Acquired 1 | . . 1 . . Parts Damaged . | . . . . . Bothacking | -11 -10 -9 -9 -8 ------------ Run | Yrd Mat Mat Min Mat Used RIF Installer . | . . . . . Robots Hacked . | . . . . . Non-combat . | . . . . . Combat . | . . . . . Robot Hacks Applied . | . . . . . Relay Couplers Released . | . . . . . Fabnet Peak Effective % . | . . . . . Robots Rewired . | . . . . . Allies Hacked . | . . . . . Hacks Repelled . | . . . . . Allies | -11 -10 -9 -9 -8 -------- Run | Yrd Mat Mat Min Mat Total Allies . | . . . . . Largest Group . | . . . . . Highest-Rated Group . | . . . . . Highest-Rated Ally . | . . . . . Total Orders . | . . . . . Ally Attacks . | . . . . . Total Damage . | . . . . . Kills . | . . . . . Allies Corrupted . | . . . . . Allies Melted . | . . . . . Intel | -11 -10 -9 -9 -8 ------- Run | Yrd Mat Mat Min Mat Robot Analysis Total 1 | . . 1 . . Derelict Logs Recovered 1 | . . . 1 . Drone Launches . | . . . . . Drone Recoveries . | . . . . . Exploration | -11 -10 -9 -9 -8 ------------- Run | Yrd Mat Mat Min Mat Turns Passed 1848 | 78 310 1131 39 290 Spaces Moved 939 | 62 221 533 25 98 Core 53 | 22 . 20 . 11 Treads 504 | . . 392 25 87 Legs 369 | 40 221 108 . . Wheels . | . . . . . Hover 13 | . . 13 . . Flight . | . . . . . Fastest Speed 50 | 50 120 120 160 160 Average Speed 161 | 95 120 175 160 220 Slowest Speed 550 | 120 120 500 160 550 Overloaded Moves . | . . . . . Propulsion Burnouts . | . . . . . Robots Hopped . | . . . . . Cave-ins Triggered . | . . . . . Exploration Rate (%) 24 | 6 47 46 10 15 Regions Visited 4 Branch Regions 1 Pre-discovered Areas . | . . . . . Known Exits Taken . | . . . . . Unknown Exits Taken 4 | 1 1 1 1 . Scrap Searched . | . . . . . Spaces Dug . | . . . . . Terrain Destroyed 46 | . 25 21 . . Melee . | . . . . . Projectile . | . . . . . AOE 46 | . 25 21 . . Terrain Rammed . | . . . . . Walls Destroyed . | . . . . . Machines Disabled . | . . . . . Actions | -11 -10 -9 -9 -8 --------- Run | Yrd Mat Mat Min Mat Total 1134 | 75 254 644 24 137 Wait 21 | . 15 2 . 4 Move 935 | 61 220 532 24 98 Hop . | . . . . . Pick Up 41 | 6 8 26 . 1 Fast Attach . | . . . . . Attach 27 | 5 3 13 . 6 Detach 1 | . . 1 . . Swap 4 | . 1 3 . . Drop 6 | . . 6 . . Fire 99 | 3 7 61 . 28 Melee . | . . . . . Ram . | . . . . . Kick . | . . . . . Crush . | . . . . . Escape Stasis . | . . . . . Rewire . | . . . . . Trap . | . . . . . Miscellaneous . | . . . . . Route ------- -11/Scrapyard -10/Materials (discovered 2 exits: *Mat / [*Min]) -9/Materials (discovered 3 exits: *Mat / [*Min] / [*Sto]) -9/Mines (discovered 2 exits: *Mat / [*Zio]) -8/Materials (discovered 1 exit: Fac) History --------- Turn | Location | Event 2 | -11/Scrapyard | Met Revision 17 53 | -11/Scrapyard | Discovered new exit (range 8) 79 | -11/Scrapyard | Entered Materials 300 | -10/Materials | Discovered new exit (range 11) 329 | -10/Materials | Build established: Mutant 371 | -10/Materials | Discovered new exit (range 17) 389 | -10/Materials | Entered another Materials area 389 | -9/Materials | Evolved 2 slots: Propulsion x2 809 | -9/Materials | Core integrity fell below 50% 1168 | -9/Materials | Discovered new exit (range 10) 1458 | -9/Materials | Discovered new exit (range 8) 1505 | -9/Materials | Discovered new exit (range 13) 1520 | -9/Materials | Entered Mines 1535 | -9/Mines | Learned location of 1 exit from Materials 1544 | -9/Mines | Discovered new exit (range 12) 1545 | -9/Mines | A Derelict revealed a hidden shortcut to a safe place 1559 | -9/Mines | Entered Materials 1559 | -8/Materials | Evolved 2 slots: Power x1, Utility x1 1560 | -8/Materials | Identified exit to Factory 1576 | -8/Materials | Build established: Scavenger-Mutant 1813 | -8/Materials | Core integrity fell below 50% 1833 | -8/Materials | Core integrity fell below 20% 1849 | -8/Materials | Destroyed by G-47 Trooper with Particle Gun Last Messages --------------- U-05 Engineer lays Concrete. K-01 Serf collects debris. U-05 Engineer lays Concrete. K-01 Serf collects debris. R-06 Scavenger collects Imp. Heat Sink. U-05 Engineer lays Concrete. R-06 Scavenger collects Particle Gun. K-01 Serf collects debris. U-05 Engineer lays Concrete. R-06 Scavenger collects Aluminum Leg. K-01 Serf collects debris. Lgt. Treads destroyed. W-25 Informer sends out distress signal. Lgt. Treads destroyed. Imp. Ion Engine destroyed. Heat Sink destroyed. Beam Rifle destroyed. Med. Battery destroyed. S-10 Pest destroyed. Critical hit (Burn: +37). Map ----- +----------------------------------------------------+ | ?????????????????????????????????????????????????? | | ?????????????????????????????????????????????????? | | ?????????????????????????????????????????????????? | | ?????????????????????????????????????????????????? | | ?????????????????????????????????????????????????? | | ????????????????????? ?????????????????????????? | | ?????????????????? T ?????????????????????????? | | ?????????????????# " ????????????????????????? | | ?????????????????# ????????????????????????? | | ?????????????????# ????????????????????????? | | ????????????????? ?????????????????????????? | | ??????????????? ? ?????????????????????????? | | ????????????? ? ?????????????????????????? | | ????????????? #?????????????????????????? | | ?????????????"" """ #?????????????????????????? | | ?????????? """ """ #?????????????????????????? | | ?????? ???? """ """ #?????????????????????????? | | ?????? ? #?????????????????????????? | | ??????? #?????????????????????????? | | ??????""" = """ """ #?????????????????????????? | | ??????"R """ """ ###+####??????????????????? | | ???? """ """ """ % #??????????????????? | | ???# #??????????????????? | | ???# #??????????????????? | | ???# #######g##/#??????????????????? | | ???# ######## ## "T"@ sr#??????????????????? | | ???# ????????# ## Y =]! #??????????????????? | | ???# ???????# # ! ]]! #??????????????????? | | ???# ???????# ## ]! #??????????????????? | | ???# ???????# ############??????????????????? | | ???# ???????# # #????????????????????? | | ???# ######## # #????????????????????? | | ???# # #????????????????????? | | ???# % #= """ #????????????????????? | | ???+ + """"" #????????????????????? | | ???# # """"" #????????????????????? | | ???# # """"" #????????????????????? | | ???# # """ #????????????????????? | | ???# # #????????????????????? | | ??## ##########????????????????????? | | ### !!! #????????????????????????????? | | !!= #????????????????????????????? | | !! #????????????????????????????? | | #????????????????????????????? | | ### #????????????????????????????? | | ??# ##############????????????????????????????? | | ??# #?????? #???????????????????????????????? | | ??# # #???????????????????????????????? | | ??# + #???????????????????????????????? | | ??# # +???????????????????????????????? | +----------------------------------------------------+ Best States ------------- Heat Dissipation 41 Energy Generation 19 Energy Capacity 580 Matter Stores 300 Matter Capacity 300 Sight Range 16 Terrain Scan Density 10 Evasion (%) 55 Recoil Reduction 4 Item Schematics ----------------- Lgt. Ion Engine | -9/Materials | Scanalyzed Robot Schematics ------------------ None Fabricated ------------ Nothing Alien Tech Used ----------------- None Achievements -------------- Crack Shot Let's See Who's Tougher Storm Trooper Challenges ------------ None Game ------ Seed GunDisposableDetector Manual? 0 Play Time 00:30:02 Cumulative 1.2 hours Start 2024.03.31 @ 13:46:19 End 2024.03.31 @ 20:09:05 Sessions 5 Manual Loads 0 Difficulty Rogue Special Mode None Game No. 2 Rogue 2 Adventurer 0 Explorer 0 Win Type - Total 0 Types 0/0/0/0/0/0/0/0/0 Lore% 1 Gallery% 2 Achievement% 2 Wizard Run 0 Options --------- Layout 0 ASCII 1 Keyboard 0 Movement Mouse Keybinds 0 Fullscreen 1 Font 12/Smallcaps Map View 76x50 Zoom Use 0% Tactical HUD 0 Map Filters NONE Filters NONE Steam SD RUN: 31686b71-7a03-4396-bdeb-c674c9746305